Workbook

Sheet NGC5005
B3: ρ(r) = ρ0sech^8( r/ r_c)
A6: M(R) =4πρ0,r_c^3 ·I(u) | C6: u = R/r_c | D6: I(u) = Integrale de 0 à u de ( x^2sech^8(x)dx | H6: V_TURI(R) = Racine (G·M(R)/R)
H8: G= | I8: =4.3009*POWER(10,-6) -> 4.3009e-06 | J8: 10^-6,KPC,(Km/s)^2/Mo
A9: NGC5005 | B9: R_max= | C9: =A32 -> 11.47 | D9: V_obs(R_max)= | E9: =B32 -> 265
B10: M_totale= | C10: V_obs^2(R_max).R_max/G= | E10: =E9*E9*C9/I8 -> 1.872819061e+11 | F10: Mo | G10: I(infini)= | H10: 0.0648738184
G11: M(R) = racine(G,M(R)/R)
B12: r_c=R_max/1,5= | C12: =C9/1.5 -> 7.646666667 | D12: ρ0=M_tot/4.π.r_c^3.I(infini)= | E12: =E10/(POWER(C12,3)*4*3.14159*H10) -> 513807437.3 | F12: Mo/kpc^3 | G12: π= | H12: 3.14159
A14: R | B14: V_obs | C14: Incer V_obs | D14: u=R/r-c | E14: I(U) par table | F14: M(R) | G14: V_TURI | H14: Erreur % | J14: calculs intermediaires de I(u)
A15: 0.49 | B15: 211 | C15: 40.1 | D15: =A15/$C$12 -> 0.06408020924 | E15: =N15*K15+O15*M15 -> 8.939509555e-05 | F15: =4*$H$12*$E$12*POWER($C$12,3)*E15 -> 258071504.1 | G15: =POWER($I$8*F15/A15,0.5) -> 47.59394002 | H15: =ROUND(ABS((B15-G15)/B15)*100,2) -> 77.44 | J15: =INDEX(Integrale!$H$3:$H$502,MATCH('NGC5005'!D15,Integrale!$H$3:$H$502,1)) -> 0.06 | K15: =INDEX(Integrale!$I$3:$I$502,MATCH('NGC5005'!D15,Integrale!$H$3:$H$502,1)) -> 7.2353e-05 | L15: =INDEX(Integrale!$H$3:$H$502,MATCH('NGC5005'!D15,Integrale!$H$3:$H$502,1)+1) -> 0.07 | M15: =INDEX(Integrale!$I$3:$I$502,MATCH('NGC5005'!D15,Integrale!$H$3:$H$502,1)+1) -> 0.0001141207 | N15: =(L15-D15)/(L15-J15) -> 0.5919790759 | O15: =(D15-J15)/(L15-J15) -> 0.4080209241
A16: 0.98 | B16: 233 | C16: 17.4 | D16: =A16/$C$12 -> 0.1281604185 | E16: =N16*K16+O16*M16 -> 0.0006782440049 | F16: =4*$H$12*$E$12*POWER($C$12,3)*E16 -> 1957998360 | G16: 92.69851917 | H16: 60.22 | J16: =INDEX(Integrale!$H$3:$H$502,MATCH('NGC5005'!D16,Integrale!$H$3:$H$502,1)) -> 0.12 | K16: =INDEX(Integrale!$I$3:$I$502,MATCH('NGC5005'!D16,Integrale!$H$3:$H$502,1)) -> 0.0005583096 | L16: =INDEX(Integrale!$H$3:$H$502,MATCH('NGC5005'!D16,Integrale!$H$3:$H$502,1)+1) -> 0.13 | M16: =INDEX(Integrale!$I$3:$I$502,MATCH('NGC5005'!D16,Integrale!$H$3:$H$502,1)+1) -> 0.0007052805 | N16: =(L16-D16)/(L16-J16) -> 0.1839581517 | O16: 0.8160418483
A17: 1.47 | B17: 227 | C17: 14.4 | D17: 0.1922406277 | E17: 0.002174459967 | F17: 6277370707 | G17: 135.5220284 | H17: 40.3 | J17: =INDEX(Integrale!$H$3:$H$502,MATCH('NGC5005'!D17,Integrale!$H$3:$H$502,1)) -> 0.19 | K17: =INDEX(Integrale!$I$3:$I$502,MATCH('NGC5005'!D17,Integrale!$H$3:$H$502,1)) -> 0.0021011974 | L17: =INDEX(Integrale!$H$3:$H$502,MATCH('NGC5005'!D17,Integrale!$H$3:$H$502,1)+1) -> 0.2 | M17: =INDEX(Integrale!$I$3:$I$502,MATCH('NGC5005'!D17,Integrale!$H$3:$H$502,1)+1) -> 0.0024281708 | N17: 0.7759372276 | O17: 0.2240627724
A18: 1.97 | B18: 234 | C18: 10.8 | D18: 0.2576285963 | E18: 0.00488321193 | F18: 1.409716987e+10 | G18: 175.4334992 | H18: 25.03 | J18: =INDEX(Integrale!$H$3:$H$502,MATCH('NGC5005'!D18,Integrale!$H$3:$H$502,1)) -> 0.25 | K18: =INDEX(Integrale!$I$3:$I$502,MATCH('NGC5005'!D18,Integrale!$H$3:$H$502,1)) -> 0.0044997288 | L18: =INDEX(Integrale!$H$3:$H$502,MATCH('NGC5005'!D18,Integrale!$H$3:$H$502,1)+1) -> 0.26 | M18: =INDEX(Integrale!$I$3:$I$502,MATCH('NGC5005'!D18,Integrale!$H$3:$H$502,1)+1) -> 0.0050024204 | N18: 0.2371403662 | O18: 0.7628596338
A19: 2.46 | B19: 245 | C19: 7.67 | D19: 0.3217088056 | E19: 0.008737272238 | F19: 2.522331873e+10 | G19: 209.9970688 | H19: 14.29 | J19: =INDEX(Integrale!$H$3:$H$502,MATCH('NGC5005'!D19,Integrale!$H$3:$H$502,1)) -> 0.32 | K19: =INDEX(Integrale!$I$3:$I$502,MATCH('NGC5005'!D19,Integrale!$H$3:$H$502,1)) -> 0.0086181365 | L19: =INDEX(Integrale!$H$3:$H$502,MATCH('NGC5005'!D19,Integrale!$H$3:$H$502,1)+1) -> 0.33 | M19: =INDEX(Integrale!$I$3:$I$502,MATCH('NGC5005'!D19,Integrale!$H$3:$H$502,1)+1) -> 0.0093153237 | N19: 0.829119442 | O19: 0.170880558
A20: 2.95 | B20: 244 | C20: 23.3 | D20: 0.3857890148 | E20: 0.0136354474 | F20: 3.936368541e+10 | G20: 239.5612335 | H20: 1.82 | J20: =INDEX(Integrale!$H$3:$H$502,MATCH('NGC5005'!D20,Integrale!$H$3:$H$502,1)) -> 0.38 | K20: =INDEX(Integrale!$I$3:$I$502,MATCH('NGC5005'!D20,Integrale!$H$3:$H$502,1)) -> 0.0131545302 | L20: =INDEX(Integrale!$H$3:$H$502,MATCH('NGC5005'!D20,Integrale!$H$3:$H$502,1)+1) -> 0.39 | M20: =INDEX(Integrale!$I$3:$I$502,MATCH('NGC5005'!D20,Integrale!$H$3:$H$502,1)+1) -> 0.0139852712 | N20: 0.4210985179 | O20: 0.5789014821
A21: 3.44 | B21: 261 | C21: 23.3 | D21: 0.4498692241 | E21: 0.01929126741 | F21: 5.569126992e+10 | G21: 263.8724271 | H21: 1.1 | J21: =INDEX(Integrale!$H$3:$H$502,MATCH('NGC5005'!D21,Integrale!$H$3:$H$502,1)) -> 0.44 | K21: =INDEX(Integrale!$I$3:$I$502,MATCH('NGC5005'!D21,Integrale!$H$3:$H$502,1)) -> 0.0183840679 | L21: =INDEX(Integrale!$H$3:$H$502,MATCH('NGC5005'!D21,Integrale!$H$3:$H$502,1)+1) -> 0.45 | M21: =INDEX(Integrale!$I$3:$I$502,MATCH('NGC5005'!D21,Integrale!$H$3:$H$502,1)+1) -> 0.0193032886 | N21: 0.01307759372 | O21: 0.9869224063
A22: 3.93 | B22: 259 | C22: 22.7 | D22: 0.5139494333 | E22: 0.02535569497 | F22: 7.319844895e+10 | G22: 283.0312156 | H22: 9.28 | J22: =INDEX(Integrale!$H$3:$H$502,MATCH('NGC5005'!D22,Integrale!$H$3:$H$502,1)) -> 0.51 | K22: =INDEX(Integrale!$I$3:$I$502,MATCH('NGC5005'!D22,Integrale!$H$3:$H$502,1)) -> 0.0249769344 | L22: =INDEX(Integrale!$H$3:$H$502,MATCH('NGC5005'!D22,Integrale!$H$3:$H$502,1)+1) -> 0.52 | M22: =INDEX(Integrale!$I$3:$I$502,MATCH('NGC5005'!D22,Integrale!$H$3:$H$502,1)+1) -> 0.0259359595 | N22: 0.6050566696 | O22: 0.3949433304
A23: 4.42 | B23: 258 | C23: 22.7 | D23: 0.5780296425 | E23: 0.03146591328 | F23: 9.083781966e+10 | G23: 297.3047778 | H23: 15.23 | J23: =INDEX(Integrale!$H$3:$H$502,MATCH('NGC5005'!D23,Integrale!$H$3:$H$502,1)) -> 0.57 | K23: =INDEX(Integrale!$I$3:$I$502,MATCH('NGC5005'!D23,Integrale!$H$3:$H$502,1)) -> 0.0307095554 | L23: =INDEX(Integrale!$H$3:$H$502,MATCH('NGC5005'!D23,Integrale!$H$3:$H$502,1)+1) -> 0.58 | M23: =INDEX(Integrale!$I$3:$I$502,MATCH('NGC5005'!D23,Integrale!$H$3:$H$502,1)+1) -> 0.0316515125 | N23: 0.1970357454 | O23: 0.8029642546
A24: 4.92 | B24: 258 | C24: 22.5 | D24: 0.6434176112 | E24: 0.03742341941 | F24: 1.08036331e+11 | G24: 307.31378 | H24: 19.11 | J24: =INDEX(Integrale!$H$3:$H$502,MATCH('NGC5005'!D24,Integrale!$H$3:$H$502,1)) -> 0.64 | K24: =INDEX(Integrale!$I$3:$I$502,MATCH('NGC5005'!D24,Integrale!$H$3:$H$502,1)) -> 0.037124703 | L24: =INDEX(Integrale!$H$3:$H$502,MATCH('NGC5005'!D24,Integrale!$H$3:$H$502,1)+1) -> 0.65 | M24: =INDEX(Integrale!$I$3:$I$502,MATCH('NGC5005'!D24,Integrale!$H$3:$H$502,1)+1) -> 0.0379987533 | N24: 0.658238884 | O24: 0.341761116
A25: 5.74 | B25: 261 | C25: 22.4 | D25: 0.7506538797 | E25: 0.04598084811 | F25: 1.327404659e+11 | G25: 315.3736432 | H25: 20.83 | J25: =INDEX(Integrale!$H$3:$H$502,MATCH('NGC5005'!D25,Integrale!$H$3:$H$502,1)) -> 0.75 | K25: =INDEX(Integrale!$I$3:$I$502,MATCH('NGC5005'!D25,Integrale!$H$3:$H$502,1)) -> 0.0459348212 | L25: =INDEX(Integrale!$H$3:$H$502,MATCH('NGC5005'!D25,Integrale!$H$3:$H$502,1)+1) -> 0.76 | M25: =INDEX(Integrale!$I$3:$I$502,MATCH('NGC5005'!D25,Integrale!$H$3:$H$502,1)+1) -> 0.0466387261 | N25: 0.9346120314 | O25: 0.06538796861
A26: 6.56 | B26: 263 | C26: 22.4 | D26: 0.8578901482 | E26: =N26*K26+O26*M26 -> 0.05260517243 | F26: 1.518639909e+11 | G26: 315.5405346 | H26: 19.98 | J26: =INDEX(Integrale!$H$3:$H$502,MATCH('NGC5005'!D26,Integrale!$H$3:$H$502,1)) -> 0.85 | K26: =INDEX(Integrale!$I$3:$I$502,MATCH('NGC5005'!D26,Integrale!$H$3:$H$502,1)) -> 0.0521872484 | L26: =INDEX(Integrale!$H$3:$H$502,MATCH('NGC5005'!D26,Integrale!$H$3:$H$502,1)+1) -> 0.86 | M26: =INDEX(Integrale!$I$3:$I$502,MATCH('NGC5005'!D26,Integrale!$H$3:$H$502,1)+1) -> 0.0527169267 | N26: 0.2109851787 | O26: 0.7890148213
A27: 7.37 | B27: 264 | C27: 22.3 | D27: =A27/$C$12 -> 0.9638186574 | E27: =N27*K27+O27*M27 -> 0.05726036098 | F27: =4*$H$12*$E$12*POWER($C$12,3)*E27 -> 1.653028882e+11 | G27: =POWER($I$8*F27/A27,0.5) -> 310.5890564 | H27: =ROUND(ABS((B27-G27)/B27)*100,2) -> 17.65 | J27: =INDEX(Integrale!$H$3:$H$502,MATCH('NGC5005'!D27,Integrale!$H$3:$H$502,1)) -> 0.96 | K27: =INDEX(Integrale!$I$3:$I$502,MATCH('NGC5005'!D27,Integrale!$H$3:$H$502,1)) -> 0.0571237109 | L27: =INDEX(Integrale!$H$3:$H$502,MATCH('NGC5005'!D27,Integrale!$H$3:$H$502,1)+1) -> 0.97 | M27: =INDEX(Integrale!$I$3:$I$502,MATCH('NGC5005'!D27,Integrale!$H$3:$H$502,1)+1) -> 0.0574815594 | N27: =(L27-D27)/(L27-J27) -> 0.6181342633 | O27: =(D27-J27)/(L27-J27) -> 0.3818657367
A28: 8.19 | B28: 265 | C28: 22.2 | D28: 1.071054926 | E28: 0.06038385003 | F28: 1.74319977e+11 | G28: 302.5598537 | H28: 14.17 | J28: =INDEX(Integrale!$H$3:$H$502,MATCH('NGC5005'!D28,Integrale!$H$3:$H$502,1)) -> 1.07 | K28: =INDEX(Integrale!$I$3:$I$502,MATCH('NGC5005'!D28,Integrale!$H$3:$H$502,1)) -> 0.0603600483 | L28: =INDEX(Integrale!$H$3:$H$502,MATCH('NGC5005'!D28,Integrale!$H$3:$H$502,1)+1) -> 1.08 | M28: =INDEX(Integrale!$I$3:$I$502,MATCH('NGC5005'!D28,Integrale!$H$3:$H$502,1)+1) -> 0.060585673 | N28: 0.8945074106 | O28: 0.1054925894
A29: 9.01 | B29: 265 | C29: 22.2 | D29: 1.178291194 | E29: 0.06232685352 | F29: 1.799291643e+11 | G29: 293.0677691 | H29: 10.59 | J29: =INDEX(Integrale!$H$3:$H$502,MATCH('NGC5005'!D29,Integrale!$H$3:$H$502,1)) -> 1.17 | K29: =INDEX(Integrale!$I$3:$I$502,MATCH('NGC5005'!D29,Integrale!$H$3:$H$502,1)) -> 0.0622098525 | L29: =INDEX(Integrale!$H$3:$H$502,MATCH('NGC5005'!D29,Integrale!$H$3:$H$502,1)+1) -> 1.18 | M29: =INDEX(Integrale!$I$3:$I$502,MATCH('NGC5005'!D29,Integrale!$H$3:$H$502,1)+1) -> 0.0623509673 | N29: 0.170880558 | O29: 0.829119442
A30: 9.83 | B30: 264 | C30: 22 | D30: 1.285527463 | E30: 0.06347660542 | F30: 1.832483419e+11 | G30: 283.154156 | H30: 7.26 | J30: =INDEX(Integrale!$H$3:$H$502,MATCH('NGC5005'!D30,Integrale!$H$3:$H$502,1)) -> 1.28 | K30: =INDEX(Integrale!$I$3:$I$502,MATCH('NGC5005'!D30,Integrale!$H$3:$H$502,1)) -> 0.0634321492 | L30: =INDEX(Integrale!$H$3:$H$502,MATCH('NGC5005'!D30,Integrale!$H$3:$H$502,1)+1) -> 1.29 | M30: =INDEX(Integrale!$I$3:$I$502,MATCH('NGC5005'!D30,Integrale!$H$3:$H$502,1)+1) -> 0.0635125771 | N30: 0.4472537053 | O30: 0.5527462947
A31: 10.65 | B31: 264 | C31: 21.9 | D31: 1.392763731 | E31: 0.06412921303 | F31: 1.851323315e+11 | G31: 273.4299001 | H31: 3.57 | J31: =INDEX(Integrale!$H$3:$H$502,MATCH('NGC5005'!D31,Integrale!$H$3:$H$502,1)) -> 1.39 | K31: =INDEX(Integrale!$I$3:$I$502,MATCH('NGC5005'!D31,Integrale!$H$3:$H$502,1)) -> 0.0641170452 | L31: =INDEX(Integrale!$H$3:$H$502,MATCH('NGC5005'!D31,Integrale!$H$3:$H$502,1)+1) -> 1.4 | M31: =INDEX(Integrale!$I$3:$I$502,MATCH('NGC5005'!D31,Integrale!$H$3:$H$502,1)+1) -> 0.064161072 | N31: 0.7236268527 | O31: 0.2763731473
A32: 11.47 | B32: 265 | C32: 22 | D32: 1.5 | E32: 0.0644867222 | F32: 1.861644119e+11 | G32: 264.2082016 | H32: 0.3 | J32: =INDEX(Integrale!$H$3:$H$502,MATCH('NGC5005'!D32,Integrale!$H$3:$H$502,1)) -> 1.5 | K32: =INDEX(Integrale!$I$3:$I$502,MATCH('NGC5005'!D32,Integrale!$H$3:$H$502,1)) -> 0.0644867222 | L32: =INDEX(Integrale!$H$3:$H$502,MATCH('NGC5005'!D32,Integrale!$H$3:$H$502,1)+1) -> 1.51 | M32: =INDEX(Integrale!$I$3:$I$502,MATCH('NGC5005'!D32,Integrale!$H$3:$H$502,1)+1) -> 0.0645100253 | N32: 1 | O32: 0
G33: Erreur moy | H33: =ROUND(AVERAGE(H15:H32),2) -> 19.9
B34: Précision= | C34: =ROUND(MAX(0,100-H33),2) -> 80.1 | D34: %
A36: R | B36: V_Obs | C36: Incer V_Obs | D36: V_TURI | E36: A=(V_obs-V_TURI)^2 | F36: A/Incer V_Obs^2
A37: =A15 -> 0.49 | B37: 211 | C37: 40.1 | D37: =ROUND(G15,2) -> 47.59 | E37: =ROUND(POWER((B37-D37),2),2) -> 26702.83 | F37: =ROUND(E37/POWER(C37,2),2) -> 16.61
A38: 0.98 | B38: 233 | C38: 17.4 | D38: =ROUND(G16,2) -> 92.7 | E38: =ROUND(POWER((B38-D38),2),2) -> 19684.09 | F38: =ROUND(E38/POWER(C38,2),2) -> 65.02
A39: 1.47 | B39: 227 | C39: 14.4 | D39: 135.52 | E39: 8368.59 | F39: 40.36
A40: 1.97 | B40: 234 | C40: 10.8 | D40: 175.43 | E40: 3430.44 | F40: 29.41
A41: 2.46 | B41: 245 | C41: 7.67 | D41: 210 | E41: 1225 | F41: 20.82
A42: 2.95 | B42: 244 | C42: 23.3 | D42: 239.56 | E42: 19.71 | F42: 0.04
A43: 3.44 | B43: 261 | C43: 23.3 | D43: 263.87 | E43: 8.24 | F43: 0.02
A44: 3.93 | B44: 259 | C44: 22.7 | D44: 283.03 | E44: 577.44 | F44: 1.12
A45: 4.42 | B45: 258 | C45: 22.7 | D45: 297.3 | E45: 1544.49 | F45: 3
A46: 4.92 | B46: 258 | C46: 22.5 | D46: 307.31 | E46: 2431.48 | F46: 4.8
A47: 5.74 | B47: 261 | C47: 22.4 | D47: 315.37 | E47: 2956.1 | F47: 5.89
A48: 6.56 | B48: 263 | C48: 22.4 | D48: 315.54 | E48: 2760.45 | F48: 5.5
A49: 7.37 | B49: 264 | C49: 22.3 | D49: 310.59 | E49: 2170.63 | F49: 4.36
A50: 8.19 | B50: 265 | C50: 22.2 | D50: 302.56 | E50: 1410.75 | F50: 2.86
A51: 9.01 | B51: 265 | C51: 22.2 | D51: 293.07 | E51: 787.92 | F51: 1.6
A52: 9.83 | B52: 264 | C52: 22 | D52: 283.15 | E52: 366.72 | F52: 0.76
A53: 10.65 | B53: 264 | C53: 21.9 | D53: 273.43 | E53: 88.92 | F53: 0.19
A54: 11.47 | B54: 265 | C54: 22 | D54: 264.21 | E54: 0.62 | F54: 0
E55: X^2/d_f= | F55: =ROUND(SUM(F37:F54)/(COUNT(F37:F54)-1),2) -> 11.9

Sheet Integrale
H1: u | I1: I(u) = Integrale de 0 à u de ( x^2sech^8(x)dx
H2: 0 | I2: 0
H3: 0.01 | I3: 4.998e-07
H4: 0.02 | I4: 2.9964e-06
H5: 0.03 | I5: 9.477e-06
H6: 0.04 | I6: 2.19098e-05
H7: 0.05 | I7: 4.22345e-05
H8: 0.06 | I8: 7.2353e-05
H9: 0.07 | I9: 0.0001141207
H10: 0.08 | I10: 0.0001693376
H11: 0.09 | I11: 0.0002397401
H12: 0.1 | I12: 0.0003269934
H13: 0.11 | I13: 0.0004326832
H14: 0.12 | I14: 0.0005583096
H15: 0.13 | I15: 0.0007052805
H16: 0.14 | I16: 0.0008749055
H17: 0.15 | I17: 0.0010683906
H18: 0.16 | I18: 0.001286834
H19: 0.17 | I19: 0.001531222
H20: 0.18 | I20: 0.0018024255
H21: 0.19 | I21: 0.0021011974
H22: 0.2 | I22: 0.0024281708
H23: 0.21 | I23: 0.0027838579
H24: 0.22 | I24: 0.0031686489
H25: 0.23 | I25: 0.0035828125
H26: 0.24 | I26: 0.0040264964
H27: 0.25 | I27: 0.0044997288
H28: 0.26 | I28: 0.0050024204
H29: 0.27 | I29: 0.0055343666
H30: 0.28 | I30: 0.006095251
H31: 0.29 | I31: 0.0066846487
H32: 0.3 | I32: 0.0073020305
H33: 0.31 | I33: 0.0079467677
H34: 0.32 | I34: 0.0086181365
H35: 0.33 | I35: 0.0093153237
H36: 0.34 | I36: 0.010037432
H37: 0.35 | I37: 0.0107834863
H38: 0.36 | I38: 0.0115524392
H39: 0.37 | I39: 0.0123431779
H40: 0.38 | I40: 0.0131545302
H41: 0.39 | I41: 0.0139852712
H42: 0.4 | I42: 0.0148341297
H43: 0.41 | I43: 0.0156997951
H44: 0.42 | I44: 0.0165809236
H45: 0.43 | I45: 0.0174761447
H46: 0.44 | I46: 0.0183840679
H47: 0.45 | I47: 0.0193032886
H48: 0.46 | I48: 0.0202323944
H49: 0.47 | I49: 0.0211699709
H50: 0.48 | I50: 0.0221146072
H51: 0.49 | I51: 0.0230649017
H52: 0.5 | I52: 0.0240194669
H53: 0.51 | I53: 0.0249769344
H54: 0.52 | I54: 0.0259359595
H55: 0.53 | I55: 0.0268952255
H56: 0.54 | I56: 0.0278534477
H57: 0.55 | I57: 0.0288093767
H58: 0.56 | I58: 0.0297618021
H59: 0.57 | I59: 0.0307095554
H60: 0.58 | I60: 0.0316515125
H61: 0.59 | I61: 0.0325865959
H62: 0.6 | I62: 0.0335137772
H63: 0.61 | I63: 0.0344320783
H64: 0.62 | I64: 0.0353405729
H65: 0.63 | I65: 0.0362383877
H66: 0.64 | I66: 0.037124703
H67: 0.65 | I67: 0.0379987533
H68: 0.66 | I68: 0.0388598276
H69: 0.67 | I69: 0.0397072693
H70: 0.68 | I70: 0.040540476
H71: 0.69 | I71: 0.0413588991
H72: 0.7 | I72: 0.0421620429
H73: 0.71 | I73: 0.0429494641
H74: 0.72 | I74: 0.0437207705
H75: 0.73 | I75: 0.04447562
H76: 0.74 | I76: 0.0452137189
H77: 0.75 | I77: 0.0459348212
H78: 0.76 | I78: 0.0466387261
H79: 0.77 | I79: 0.0473252771
H80: 0.78 | I80: 0.0479943599
H81: 0.79 | I81: 0.0486459007
H82: 0.8 | I82: 0.0492798642
H83: 0.81 | I83: 0.0498962518
H84: 0.82 | I84: 0.0504950998
H85: 0.83 | I85: 0.0510764772
H86: 0.84 | I86: 0.0516404838
H87: 0.85 | I87: 0.0521872484
H88: 0.86 | I88: 0.0527169267
H89: 0.87 | I89: 0.0532296993
H90: 0.88 | I90: 0.0537257701
H91: 0.89 | I91: 0.0542053641
H92: 0.9 | I92: 0.0546687257
H93: 0.91 | I93: 0.0551161169
H94: 0.92 | I94: 0.0555478158
H95: 0.93 | I95: 0.0559641145
H96: 0.94 | I96: 0.0563653178
H97: 0.95 | I97: 0.0567517415
H98: 0.96 | I98: 0.0571237109
H99: 0.97 | I99: 0.0574815594
H100: 0.98 | I100: 0.0578256274
H101: 0.99 | I101: 0.0581562605
H102: 1 | I102: 0.0584738086
H103: 1.01 | I103: 0.0587786248
H104: 1.02 | I104: 0.059071064
H105: 1.03 | I105: 0.0593514822
H106: 1.04 | I106: 0.0596202355
H107: 1.05 | I107: 0.0598776791
H108: 1.06 | I108: 0.0601241663
H109: 1.07 | I109: 0.0603600483
H110: 1.08 | I110: 0.060585673
H111: 1.09 | I111: 0.0608013846
H112: 1.1 | I112: 0.0610075229
H113: 1.11 | I113: 0.0612044228
H114: 1.12 | I114: 0.0613924139
H115: 1.13 | I115: 0.0615718202
H116: 1.14 | I116: 0.0617429593
H117: 1.15 | I117: 0.0619061425
H118: 1.16 | I118: 0.0620616744
H119: 1.17 | I119: 0.0622098525
H120: 1.18 | I120: 0.0623509673
H121: 1.19 | I121: 0.0624853017
H122: 1.2 | I122: 0.0626131314
H123: 1.21 | I123: 0.0627347243
H124: 1.22 | I124: 0.0628503409
H125: 1.23 | I125: 0.0629602337
H126: 1.24 | I126: 0.0630646479
H127: 1.25 | I127: 0.0631638207
H128: 1.26 | I128: 0.0632579818
H129: 1.27 | I129: 0.0633473531
H130: 1.28 | I130: 0.0634321492
H131: 1.29 | I131: 0.0635125771
H132: 1.3 | I132: 0.0635888365
H133: 1.31 | I133: 0.0636611197
H134: 1.32 | I134: 0.0637296121
H135: 1.33 | I135: 0.0637944919
H136: 1.34 | I136: 0.0638559305
H137: 1.35 | I137: 0.0639140927
H138: 1.36 | I138: 0.0639691366
H139: 1.37 | I139: 0.064021214
H140: 1.38 | I140: 0.0640704704
H141: 1.39 | I141: 0.0641170452
H142: 1.4 | I142: 0.064161072
H143: 1.41 | I143: 0.0642026787
H144: 1.42 | I144: 0.0642419876
H145: 1.43 | I145: 0.0642791157
H146: 1.44 | I146: 0.0643141746
H147: 1.45 | I147: 0.064347271
H148: 1.46 | I148: 0.064378507
H149: 1.47 | I149: 0.0644079795
H150: 1.48 | I150: 0.0644357814
H151: 1.49 | I151: 0.0644620009
H152: 1.5 | I152: 0.0644867222
H153: 1.51 | I153: 0.0645100253
H154: 1.52 | I154: 0.0645319867
H155: 1.53 | I155: 0.0645526787
H156: 1.54 | I156: 0.0645721705
H157: 1.55 | I157: 0.0645905275
H158: 1.56 | I158: 0.0646078121
H159: 1.57 | I159: 0.0646240835
H160: 1.58 | I160: 0.0646393978
H161: 1.59 | I161: 0.0646538084
H162: 1.6 | I162: 0.0646673658
H163: 1.61 | I163: 0.064680118
H164: 1.62 | I164: 0.0646921104
H165: 1.63 | I165: 0.0647033862
H166: 1.64 | I166: 0.0647139861
H167: 1.65 | I167: 0.0647239487
H168: 1.66 | I168: 0.0647333107
H169: 1.67 | I169: 0.0647421067
H170: 1.68 | I170: 0.0647503694
H171: 1.69 | I171: 0.0647581297
H172: 1.7 | I172: 0.064765417
H173: 1.71 | I173: 0.064772259
H174: 1.72 | I174: 0.0647786817
H175: 1.73 | I175: 0.0647847098
H176: 1.74 | I176: 0.0647903667
H177: 1.75 | I177: 0.0647956744
H178: 1.76 | I178: 0.0648006536
H179: 1.77 | I179: 0.064805324
H180: 1.78 | I180: 0.0648097041
H181: 1.79 | I181: 0.0648138112
H182: 1.8 | I182: 0.0648176618
H183: 1.81 | I183: 0.0648212714
H184: 1.82 | I184: 0.0648246547
H185: 1.83 | I185: 0.0648278252
H186: 1.84 | I186: 0.0648307961
H187: 1.85 | I187: 0.0648335795
H188: 1.86 | I188: 0.0648361869
H189: 1.87 | I189: 0.0648386291
H190: 1.88 | I190: 0.0648409162
H191: 1.89 | I191: 0.0648430578
H192: 1.9 | I192: 0.064845063
H193: 1.91 | I193: 0.0648469402
H194: 1.92 | I194: 0.0648486973
H195: 1.93 | I195: 0.0648503418
H196: 1.94 | I196: 0.0648518808
H197: 1.95 | I197: 0.0648533208
H198: 1.96 | I198: 0.0648546681
H199: 1.97 | I199: 0.0648559285
H200: 1.98 | I200: 0.0648571074
... 172 more rows

Sheet Feuil3
